Cogmind - Beta 13 @@@ ROGUE MODE // 2024.04.12 @ 20:45:13 Player: chexo4 Result: Destroyed by D-53 Grenadier with Mini Grenade Launcher Performance ------------- Evolutions (0) 0 Regions Visited (2) 400 Robots Destroyed (7) 35 Value Destroyed (58) 58 Prototype IDs (0) 0 Alien Tech Used (0) 0 Bonus (0) 0 TOTAL SCORE: 493 Bonus ------- None Cogmind --------- Core Integrity 0/250 Matter 284/300 Energy 99/100 System Corruption 0% Temperature Cool (0) Movement Rolling (100) Location -10/Mines Parts ------- > --- POWER (1) -------- (None) > --- PROPULSION (2) --- Compact Wheel Compact Wheel > --- UTILITY (2) ------ Small Storage Unit > --- WEAPON (2) ------- Assault Rifle > --- INVENTORY (8) ---- Light Ion Engine Signal Interpreter Bore Cannon Mining Laser Peak State ------------ > --- POWER ------------ Light Ion Engine > --- PROPULSION ------- Compact Wheel Compact Wheel > --- UTILITY ---------- Small Storage Unit Seismic Detector > --- WEAPON ----------- Assault Rifle Bore Cannon > --- INVENTORY -------- Light Ion Engine Signal Interpreter Seismic Detector Grenade Launcher Mining Laser [Rating: 11] Favorites ----------- Power Light Ion Engine Engine Light Ion Engine Propulsion Compact Wheel Wheel Compact Wheel Hover Unit Hover Unit Utility Small Storage Unit Device Seismic Detector Storage Small Storage Unit Weapon Assault Rifle Ballistic Gun Assault Rifle Ballistic Cannon Bore Cannon Launcher Grenade Launcher Build | -11 -10 -10 ------- Run | Yrd Mat Min Slots Evolved . | . . . Power . | . . . Propulsion . | . . . Utility . | . . . Weapon . | . . . Parts Attached 17 | 7 3 7 Power 1 | 1 . . Engine 1 | 1 . . Core . | . . . Reactor . | . . . Propulsion 7 | 2 3 2 Treads . | . . . Leg . | . . . Wheel 5 | 2 1 2 Hover 2 | . 2 . Flight . | . . . Utility 3 | 2 . 1 Device 2 | 1 . 1 Storage 1 | 1 . . Processor . | . . . Hackware . | . . . Protection . | . . . Artifact . | . . . Weapon 6 | 2 . 4 Energy Gun . | . . . Energy Cannon . | . . . Ballistic Gun 3 | 2 . 1 Ballistic Cannon 1 | . . 1 Launcher 2 | . . 2 Special Weapon . | . . . Impact Weapon . | . . . Slashing Weapon . | . . . Piercing Weapon . | . . . Special Melee Weapon . | . . . Unidentified Prototypes . | . . . Parts Lost 6 | . . 6 Power 1 | . . 1 Propulsion 2 | . . 2 Utility 2 | . . 2 Weapon 1 | . . 1 Highest Loss Streak 2 | . . 2 To Critical Strikes . | . . . Average Slot Usage (%) 92 | . 95 91 Engine 12 | . 14 12 Wheel 20 | . 17 21 Hover 6 | . 10 5 Device 13 | . 14 13 Storage 14 | . 14 14 Ballistic Gun 14 | . 23 12 Ballistic Cannon 4 | . . 5 Launcher 4 | . . 5 Naked Turns . | . . . Heaviest Build 20 | 13 13 20 Greatest Support 32 | 32 32 32 Greatest Overweight (x) 3 | 2 . 3 Average Overweight (x) . | . . . Largest Inventory Capacity 8 | 8 8 8 Average Capacity 7 | 6 8 8 Most Carried 8 | 6 8 8 Average Carried 5 | 3 6 5 Final Capacity 8 | 8 8 8 Final Carried 8 | 5 8 4 Class Distribution -------------------- 100% | Mutant Dominant Class ---------------- Mutant | -10/Materials Mutant | -10/Mines Resources | -11 -10 -10 ----------- Run | Yrd Mat Min Matter Collected 603 | 306 41 256 Remotely . | . . . Salvage Created 289 | 103 41 145 Parts 23 | 12 7 4 Haulers Intercepted . | . . . Recyclers Shooed 2 | 1 1 . Parts Field Recycled . | . . . Retrieved Matter . | . . . Parts Self-Destructed . | . . . Prevented . | . . . Kills | -11 -10 -10 ------- Run | Yrd Mat Min Combat Hostiles Destroyed 8 | . . 8 Cannons 1 | . . 1 AOE 7 | . . 7 Classes Destroyed 6 | 2 1 3 Worker 1 | . . 1 Builder 1 | . . 1 Tunneler 2 | 2 . . Recycler 1 | 1 . . Watcher 2 | . 2 . Assembled 8 | . . 8 Best Kill Streak 6 | 2 2 6 Combat Bots Only 6 | . . 6 Max Kills in Single Turn 3 | 1 1 3 Gunslinging . | . . . Exploded 3 | . . 3 Melee . | . . . Uniques/NPCs Destroyed . | . . . Combat | -11 -10 -10 -------- Run | Yrd Mat Min Hostile Shots Fired 35 | . . 35 Missed 12 | . . 12 Damage Taken 621 | 4 . 617 Core 255 | . . 255 Absorbed by Shields . | . . . Core Remaining (%) 100 | 100 . . Volleys Fired 39 | 6 4 29 Largest 2 | 2 2 2 Hottest 77 | 40 40 77 Shots Fired 61 | 12 6 43 Gun 43 | 12 6 25 Cannon 9 | . . 9 Launcher 9 | . . 9 Special . | . . . Kinetic 52 | 12 6 34 Thermal . | . . . Explosive 9 | . . 9 Electromagnetic . | . . . Robot Hit Streak 10 | 2 5 10 Robot Miss Streak 7 | 2 1 7 Penetration Max . | . . . Secondary Targets . | . . . Shots Hit Robots 34 | 6 5 23 Core Hits 27 | 4 4 19 Critical Kills . | . . . Critical Parts Destroyed . | . . . Critical Strikes . | . . . Melee Attacks . | . . . Impact . | . . . Slashing . | . . . Piercing . | . . . Sneak Attacks . | . . . Combat Hostiles . | . . . Follow-up Attacks . | . . . Damage Inflicted 908 | 87 62 759 Guns 327 | 78 62 187 Cannons 11 | . . 11 Explosions 559 | . . 559 Melee . | . . . Ramming 11 | 9 . 2 Kinetic 338 | 78 62 198 Thermal . | . . . Explosive 559 | . . 559 Electromagnetic . | . . . Impact . | . . . Slashing . | . . . Piercing . | . . . Highest Corruption . | . . . Average Corruption . | . . . Corruption Purged . | . . . Corruption Blocked . | . . . Overload Shots . | . . . Overflow Damage 25 | . . 25 Projectiles . | . . . Explosions 25 | . . 25 Melee . | . . . Knockbacks . | . . . Impact . | . . . Kinetic . | . . . Secondary . | . . . Self-Inflicted Damage 158 | 4 . 154 Shots 4 | . . 4 Rammed 2 | 1 . 1 Targets Rammed 2 | 1 . 1 Kicked . | . . . Crushed . | . . . Highest Temperature 60 | . 2 60 Average Temperature 18 | . 2 19 Received Heat Transfer . | . . . Siege Activations . | . . . Robots Corrupted . | . . . Combat Hostiles . | . . . Parts Fried . | . . . Impact Corruptions . | . . . Robots Melted . | . . . Combat Hostiles . | . . . Parts Melted . | . . . Heat Transferred . | . . . Parts Sabotaged . | . . . Parts Stolen . | . . . Parts Stripped . | . . . Power Chain Reactions . | . . . Alert | -11 -10 -10 ------- Run | Yrd Mat Min Peak Influence 53 | 15 31 53 Initial 12 | . 9 12 Average 24 | 5 18 31 Maximum Alert Level . | . . . Low Security (%) 100 | 100 100 100 Level 1 . | . . . Level 2 . | . . . Level 3 . | . . . Level 4 . | . . . Level 5 . | . . . High Security . | . . . Max Security . | . . . Squads Dispatched 1 | . . 1 Investigation 1 | . . 1 Extermination . | . . . Reinforcement . | . . . Assault . | . . . Garrison . | . . . Intercept . | . . . Searches Triggered . | . . . Construction Impeded . | . . . Haulers Reinforced . | . . . Active Scanning Responses . | . . . Cargo Convoy Interrupts . | . . . Stealth | -11 -10 -10 --------- Run | Yrd Mat Min Distress Signals 2 | . . 2 Communications Jammed . | . . . Distress Signals . | . . . Times Spotted 11 | . 2 9 Peak Tracking Total 5 | . 2 5 Tactical Retreats 2 | . . 2 Traps | -11 -10 -10 ------- Run | Yrd Mat Min Traps Triggered . | . . . Indirectly . | . . . Trap Hack Attempts . | . . . Triggered . | . . . Disarmed . | . . . Reprogrammed . | . . . Reused . | . . . Traps Extracted . | . . . Installed . | . . . Triggered . | . . . Machines | -11 -10 -10 ---------- Run | Yrd Mat Min Machines Disabled . | . . . Max in Single Turn . | . . . Machines Repaired . | . . . Machines Dismantled . | . . . Machines Sabotaged . | . . . Overloaded Fab Kills . | . . . Hacking | -11 -10 -10 --------- Run | Yrd Mat Min Machines Accessed 2 | . 1 1 Terminals 2 | . 1 1 Fabricators . | . . . Repair Stations . | . . . Recycling Units . | . . . Scanalyzers . | . . . Garrison Access . | . . . Total Hacks 6 | . 1 5 Successful 1 | . 1 . Failed 5 | . . 5 Catastrophic 1 | . . 1 Database Lockouts . | . . . Manual 6 | . 1 5 Terminals 6 | . 1 5 Fabricators . | . . . Repair Stations . | . . . Recycling Units . | . . . Scanalyzers . | . . . Garrison Access . | . . . Terminal Hacks 1 | . 1 . Branch Access Points 1 | . 1 . Fabricator Hacks . | . . . Repair Station Hacks . | . . . Recycling Unit Hacks . | . . . Scanalyzer . | . . . Garrison Access Hacks . | . . . Unauthorized Hacks . | . . . Terminals . | . . . Fabricators . | . . . Repair Stations . | . . . Recycling Units . | . . . Scanalyzers . | . . . Garrison Access . | . . . Data Cores Recovered . | . . . Used . | . . . Hacking Detections 2 | . 1 1 Full Trace Events 1 | . . 1 Feedback Events . | . . . Feedback Blocked . | . . . Robot Schematics Acquired . | . . . Robots Built . | . . . Authchips . | . . . Time . | . . . Total Robot Build Rating . | . . . Part Schematics Acquired . | . . . Parts Built . | . . . Authchips . | . . . Time . | . . . Total Part Build Rating . | . . . Parts Repaired . | . . . Time . | . . . Parts Recycled . | . . . Recycled Matter . | . . . Retrieved Matter . | . . . Retrieved Components . | . . . Parts Scanalyzed . | . . . Part Schematics Acquired . | . . . Parts Damaged . | . . . Bothacking | -11 -10 -10 ------------ Run | Yrd Mat Min Used RIF Installer . | . . . Robots Hacked . | . . . Non-combat . | . . . Combat . | . . . Robot Hacks Applied . | . . . Relay Couplers Released . | . . . Fabnet Peak Effective % . | . . . Robots Rewired . | . . . Allies Hacked . | . . . Hacks Repelled . | . . . Allies | -11 -10 -10 -------- Run | Yrd Mat Min Total Allies . | . . . Largest Group . | . . . Highest-Rated Group . | . . . Highest-Rated Ally . | . . . Total Orders . | . . . Ally Attacks . | . . . Total Damage . | . . . Kills . | . . . Allies Corrupted . | . . . Allies Melted . | . . . Intel | -11 -10 -10 ------- Run | Yrd Mat Min Robot Analysis Total . | . . . Derelict Logs Recovered . | . . . Drone Launches . | . . . Drone Recoveries . | . . . Exploration | -11 -10 -10 ------------- Run | Yrd Mat Min Turns Passed 582 | 109 96 377 Spaces Moved 495 | 75 99 321 Core 32 | 28 . 4 Treads . | . . . Legs . | . . . Wheels 301 | 47 49 205 Hover 162 | . 50 112 Flight . | . . . Fastest Speed 50 | 50 56 56 Average Speed 85 | 95 77 85 Slowest Speed 200 | 150 100 200 Overloaded Moves . | . . . Propulsion Burnouts . | . . . Robots Hopped . | . . . Cave-ins Triggered . | . . . Exploration Rate (%) 23 | 4 20 47 Regions Visited 2 Branch Regions 1 Pre-discovered Areas . | . . . Known Exits Taken 1 | . 1 . Unknown Exits Taken 1 | 1 . . Scrap Searched 1 | . . 1 Spaces Dug . | . . . Terrain Destroyed 79 | . . 79 Melee . | . . . Projectile 11 | . . 11 AOE 68 | . . 68 Terrain Rammed . | . . . Walls Destroyed . | . . . Machines Disabled . | . . . Actions | -11 -10 -10 --------- Run | Yrd Mat Min Total 592 | 100 111 381 Wait 22 | . . 22 Move 494 | 75 98 321 Hop . | . . . Pick Up 17 | 12 4 1 Fast Attach . | . . . Attach 12 | 7 . 5 Detach . | . . . Swap 5 | . 3 2 Drop 2 | . 2 . Fire 39 | 6 4 29 Melee . | . . . Ram 1 | . . 1 Kick . | . . . Crush . | . . . Escape Stasis . | . . . Rewire . | . . . Trap . | . . . Miscellaneous . | . . . Route ------- -11/Scrapyard -10/Materials (discovered 2 exits: *Min x2) -10/Mines (discovered 1 exit: [*Mat]) History --------- Turn | Location | Event 10 | -11/Scrapyard | Discovered new exit (range 16) 110 | -11/Scrapyard | Entered Materials 181 | -10/Materials | Identified exit to Mines 206 | -10/Materials | Entered Mines 232 | -10/Mines | Assembled infested the area 237 | -10/Mines | Assisted by a Guerilla fighting off Assembled 321 | -10/Mines | Discovered new exit (range 8) 333 | -10/Mines | Build established: Mutant 478 | -10/Mines | Core integrity fell below 50% 582 | -10/Mines | Core integrity fell below 20% 583 | -10/Mines | Destroyed by D-53 Grenadier with Mini Grenade Launcher Last Messages --------------- as-71729 destroyed. HV Slug penetrates Wall. Seismic Detector destroyed. Lgt. Ion Engine destroyed. HV Slug penetrates Wall. HV Slug penetrates as-58220. as-58220 destroyed. HV Slug penetrates Wall. Acquired 12 matter. K-01 Serf collects debris. Acquired 78 matter. K-01 Serf collects debris. U-05 Engineer lays Concrete. U-05 Engineer builds a Wall. K-01 Serf destroyed. The unstable cave ceiling collapses. U-05 Engineer lays Concrete. U-05 Engineer destroyed. Grenade Launcher destroyed. Seismic Detector destroyed. Map ----- +----------------------------------------------------+ | | | ?????????????????????????????????????????????????? | | ?????????????????????????????????#######?????????? | | ?????????????????####???????????## ##"##????????? | | ??????############ ###??######## #????????# | | ??????# #### # # #????##### | | ??????# ######### # # ## ###### | | ??????# #???????# # ! ### | | ??????# #???????## =% ##?# | | ??????# #????????### ##??######## | | ??????# #??????????## ############# | | ??????# #???????????## ## % %! | | ??????# #????????????## ## ##### ### ## | | ??????# #?????????????## ##??????# ??# ### | | ?###??# #???#####??????## ##???????#???####### | | ? #??# #??## #########%! ##????????????????# | | ?# #### #??# * "%" ##??????????=#?????# | | ?# ## #??# | " #####????????%#?????# | | ?# ## ###??## ==*######## ### ###??????=#?????#"" | | ?# ## #####?## [ #?????##### ??????? #?????#"" | | ## ## ## ####=!!#????##??# ##??????? #?????#"" | | ##= <*#???## ### # #??????# #?????# | | ## #### !!###### %# #??????# #?????#"" | | ?# #??## ###?# #??????## #####?#"" | | ?# #???# #??# # ######### #?#"" | | ?# #???## #???# @ !% ## #?# | | ?# #????# #